bitfinex/quotes_SOLUSD_20251128
["timestamp","ask_amount","ask_price","bid_price","bid_amount"]
[1764351385558,5.86757187,137.62,137.57,8.80994492]
[1764351385763,5.86757187,137.64,137.59,5.86757187]
[1764351385951,5.86757187,137.64,137.6,3.24]
[1764351386152,5.86757187,137.64,137.6,3.95]
[1764351386463,5.86757187,137.63,137.6,3.24]
[1764351386861,0.66,137.64,137.6,3.24]
[1764351387044,5.86757187,137.63,137.6,3.24]
[1764351387246,5.86757187,137.62,137.6,3.24]
[1764351387758,6.52757187,137.61,137.58,3.24]
[1764351387946,5.86757187,137.6,137.58,3.24]
[1764351388970,6.52757187,137.6,137.58,3.24]
[1764351389169,0.66,137.62,137.58,3.24]
[1764351389380,5.86757187,137.6,137.58,3.24]
[1764351389742,5.86757187,137.59,137.58,3.24]
[1764351390277,6.52757187,137.59,137.55,3.24]
[1764351390444,5.86757187,137.57,137.55,3.24]
[1764351392685,5.86757187,137.56,137.55,3.24]
[1764351393163,6.52757187,137.56,137.51,0.28432314]
[1764351393365,5.86757187,137.54,137.52,3.24]
[1764351393871,6.52757187,137.53,137.47,8.80994492]
[1764351394073,5.86757187,137.52,137.48,3.24]
[1764351394259,5.86757187,137.5,137.48,3.24]
[1764351394460,5.86757187,137.52,137.48,3.95]
[1764351395056,0.66,137.54,137.49,9.09426806]
[1764351395270,17.008864,137.56,137.49,9.81426806]
[1764351395461,5.86757187,137.54,137.5,0.72]
[1764351395664,5.86757187,137.55,137.5,0.72]
[1764351395859,21.94511817,137.6,137.5,0.72]
[1764351395860,5.86757187,137.57,137.51,5.86757187]
[1764351396167,5.86757187,137.55,137.52,3.24]
[1764351396863,5.86757187,137.56,137.53,0.72]
[1764351397064,5.86757187,137.54,137.52,3.24]
[1764351397746,6.56757187,137.53,137.49,16.308864]
[1764351397965,5.86757187,137.51,137.5,3.24]
[1764351398365,5.86757187,137.51,137.48,3.24]
[1764351398548,5.86757187,137.51,137.48,3.96]
[1764351398959,5.86757187,137.51,137.48,3.24]
[1764351399181,104.1,137.55,137.49,0.72]
[1764351399489,104.1,137.55,137.52,16.308864]
[1764351399490,5.86757187,137.55,137.52,16.308864]
[1764351399662,5.86757187,137.55,137.52,19.548864]
[1764351399864,5.86757187,137.56,137.52,20.268864]
[1764351400263,5.86757187,137.6,137.52,20.268864]
[1764351400264,0.7,137.6,137.53,1.00432314]
[1764351400483,5.86757187,137.57,137.53,1.00432314]
[1764351400678,5.86757187,137.55,137.52,19.548864]
[1764351401080,5.86757187,137.56,137.52,20.268864]
[1764351401282,5.86757187,137.56,137.52,27.54003208]
[1764351401471,0.7,137.58,137.52,27.54003208]
[1764351401671,5.86757187,137.56,137.52,27.54003208]
[1764351401865,5.86757187,137.56,137.52,26.82003208]
[1764351402065,5.86757187,137.56,137.52,27.54003208]
[1764351402268,5.86757187,137.56,137.53,0.72]
[1764351402593,5.86757187,137.56,137.52,27.54003208]
[1764351402764,5.86757187,137.57,137.52,27.54003208]
[1764351402966,5.86757187,137.56,137.52,27.54003208]
[1764351403567,6.56757187,137.56,137.52,27.54003208]
[1764351403989,5.86757187,137.54,137.52,26.82003208]
[1764351404194,5.86757187,137.56,137.52,27.54003208]
[1764351404877,5.86757187,137.57,137.52,27.54003208]
[1764351405398,6.56757187,137.57,137.52,27.54003208]
[1764351406295,5.86757187,137.56,137.52,27.54003208]
[1764351406899,5.86757187,137.56,137.53,0.72]
[1764351407278,0.7,137.59,137.53,1.00432314]
[1764351407604,5.86757187,137.57,137.53,1.00432314]
[1764351408197,5.86757187,137.57,137.54,7.27061218]
[1764351408395,0.7,137.57,137.55,3.24]
[1764351408575,6.56757187,137.57,137.55,3.24]
[1764351408975,5.86757187,137.56,137.55,3.24]
[1764351409294,6.56757187,137.56,137.53,3.24]
[1764351409592,13.13509821,137.6,137.53,3.24]
[1764351409593,6.56757187,137.55,137.53,3.24]
[1764351410777,5.86757187,137.54,137.53,3.24]
[1764351411800,5.86757187,137.56,137.53,11.23097005]
[1764351411992,5.86757187,137.59,137.54,1.00432314]
[1764351412191,126.04308181,137.64,137.54,1.00432314]
[1764351412192,5.86757187,137.58,137.54,1.00432314]
[1764351412391,5.86757187,137.57,137.54,1.00432314]
[1764351412801,5.86757187,137.58,137.54,1.00432314]
[1764351413181,0.7,137.6,137.53,19.548864]
[1764351413182,5.86757187,137.55,137.53,19.548864]
[1764351414099,6.56757187,137.57,137.53,27.53989064]
[1764351414284,5.86757187,137.57,137.53,27.53989064]
[1764351414478,5.86757187,137.57,137.54,1.00432314]
[1764351414700,5.86757187,137.58,137.54,1.00432314]
[1764351415394,5.86757187,137.58,137.54,8.27442135]
[1764351415706,6.56757187,137.58,137.54,1.00432314]
[1764351415886,5.86757187,137.57,137.54,1.00432314]
[1764351416080,5.86757187,137.57,137.54,8.27478158]
[1764351416276,5.86757187,137.56,137.53,19.548864]
[1764351416697,0.7,137.56,137.53,19.548864]
[1764351416897,10.92015807,137.56,137.53,19.548864]
[1764351417099,10.22015807,137.55,137.53,19.548864]
[1764351418314,10.22015807,137.55,137.53,26.8199264]
[1764351418889,10.22015807,137.6,137.49,19.03010299]
[1764351418890,10.92015807,137.54,137.49,9.52994492]
[1764351419093,10.22015807,137.53,137.5,3.24]
[1764351419293,10.22015807,137.53,137.51,0.28432314]
[1764351419886,10.92015807,137.52,137.45,0.72]
[1764351420083,10.22015807,137.46,137.43,0.72]
[1764351420282,10.22015807,137.46,137.44,3.24]
[1764351420812,10.22015807,137.47,137.44,3.24]
[1764351421014,10.22015807,137.46,137.44,3.24]
[1764351421320,10.22015807,137.45,137.42,10.51696114]
[1764351421488,10.22015807,137.43,137.36,0.72]
[1764351421687,12.04994492,137.49,137.38,7.27907992]
[1764351421886,10.92015807,137.47,137.4,10.22015807]
[1764351422103,10.22015807,137.46,137.42,0.28432314]
[1764351422308,0.7,137.47,137.41,12.76994492]
[1764351422610,10.22015807,137.47,137.42,0.72]
[1764351422910,10.22015807,137.46,137.42,0.72]
[1764351423109,10.22015807,137.46,137.42,1.00432314]
[1764351423312,0.7,137.47,137.42,1.00432314]
[1764351423609,10.22015807,137.46,137.43,0.72]
[1764351423805,10.22015807,137.46,137.44,3.52432314]
[1764351424194,0.7,137.51,137.45,0.72]
[1764351424393,10.22015807,137.5,137.45,0.72]
[1764351424594,10.22015807,137.48,137.44,3.52432314]
[1764351424796,10.22015807,137.47,137.44,3.52432314]
[1764351425196,10.88015807,137.47,137.44,3.52432314]
[1764351425403,10.22015807,137.46,137.44,3.52432314]
[1764351425915,10.88015807,137.47,137.44,3.52432314]
[1764351426492,10.22015807,137.45,137.44,3.24]
[1764351426707,10.88015807,137.45,137.41,7.27709046]
[1764351426906,10.22015807,137.43,137.41,7.27709046]
[1764351427417,10.88015807,137.44,137.41,7.27709046]
[1764351428716,0.66,137.48,137.42,0.99432314]
[1764351429015,10.22015807,137.46,137.43,3.26]
[1764351429310,10.22015807,137.45,137.43,3.26]
[1764351429699,10.22015807,137.44,137.43,3.26]
[1764351429894,10.22015807,137.45,137.43,3.26]
[1764351431416,10.88015807,137.44,137.43,3.26]
[1764351431822,10.88015807,137.44,137.36,7.99000842]
[1764351432016,10.88015807,137.44,137.37,3.26]
[1764351432017,10.22015807,137.39,137.37,3.26]
[1764351432900,0.66,137.41,137.38,0.28432314]
[1764351432901,10.22015807,137.4,137.38,0.28432314]
[1764351433921,10.22015807,137.4,137.38,7.56337686]
[1764351435315,10.22015807,137.4,137.38,0.28432314]
[1764351435529,10.88015807,137.39,137.36,0.28432314]
[1764351435723,8.80994492,137.42,137.34,0.71]
[1764351435939,10.22015807,137.36,137.35,3.26]
[1764351436429,0.66,137.39,137.35,3.26]
[1764351436644,10.22015807,137.38,137.35,3.26]
[1764351436809,10.22015807,137.37,137.35,3.26]
[1764351437741,8.80994492,137.42,137.36,8.27416369]
[1764351437742,10.22015807,137.4,137.36,8.27416369]
[1764351438055,10.22015807,137.37,137.35,19.568864]
[1764351438931,10.22015807,137.37,137.35,26.84951202]
[1764351439151,10.22015807,137.38,137.36,0.28432314]
[1764351439351,10.22015807,137.39,137.36,0.28432314]
[1764351439713,10.22015807,137.4,137.37,0.69]
[1764351439932,16.308864,137.42,137.37,0.69]
[1764351439933,10.22015807,137.41,137.37,0.69]
[1764351440368,10.22015807,137.4,137.37,0.69]
[1764351441335,10.22015807,137.4,137.37,7.96957163]
[1764351441552,17.008864,137.45,137.38,4.23432314]
[1764351441719,10.22015807,137.42,137.38,4.23432314]
[1764351441920,10.22015807,137.43,137.39,0.69]
[1764351442131,10.22015807,137.44,137.41,0.28432314]
[1764351442333,10.22015807,137.46,137.42,3.95]
[1764351442537,10.22015807,137.46,137.43,0.28432314]
[1764351443139,10.22015807,137.46,137.43,0.97432314]
[1764351443335,10.22015807,137.48,137.45,0.28432314]
[1764351443527,10.22015807,137.48,137.45,3.54432314]
[1764351443733,25.11880892,137.52,137.45,3.26]
[1764351443932,10.22015807,137.47,137.45,3.26]
[1764351444239,10.22015807,137.46,137.45,3.26]
[1764351444434,10.22015807,137.46,137.42,10.82090245]
[1764351444625,10.22015807,137.44,137.42,10.53657931]
[1764351447454,104.1,137.48,137.43,0.28432314]
[1764351447749,104.1,137.48,137.43,0.97432314]
[1764351447956,10.22015807,137.5,137.45,0.28432314]
[1764351448153,10.22015807,137.5,137.44,8.80994492]
[1764351448154,10.22015807,137.5,137.47,0.28432314]
[1764351449259,10.22015807,137.48,137.46,10.53436318]
[1764351450156,10.22015807,137.48,137.46,3.26]
[1764351450842,10.22015807,137.47,137.46,3.26]
[1764351451223,10.92015807,137.47,137.44,0.28432314]
[1764351451426,10.22015807,137.45,137.44,3.26]
[1764351451824,10.22015807,137.47,137.44,3.26]
[1764351452030,10.22015807,137.47,137.44,10.53587555]
[1764351452259,10.92015807,137.47,137.44,3.26]
[1764351452429,10.22015807,137.48,137.45,0.69]
[1764351453232,10.92015807,137.48,137.44,3.26]
[1764351453956,10.22015807,137.47,137.44,3.26]
[1764351454732,114.32015807,137.47,137.44,3.26]
[1764351454930,10.22015807,137.45,137.42,0.28432314]
[1764351455148,10.22015807,137.45,137.43,3.26]
[1764351455337,0.71,137.53,137.47,0.28432314]
[1764351455652,10.22015807,137.49,137.47,3.26]
[1764351455854,10.22015807,137.48,137.44,0.96432314]
[1764351456034,0.71,137.52,137.44,0.96432314]
[1764351456035,0.71,137.51,137.44,3.54432314]
[1764351456230,10.22015807,137.47,137.44,3.54432314]
[1764351456845,10.93015807,137.46,137.44,3.54432314]
[1764351457357,10.22015807,137.46,137.44,3.54432314]
[1764351457855,10.93015807,137.45,137.44,3.26]
[1764351458451,10.93015807,137.45,137.37,0.68]
[1764351458661,10.22015807,137.41,137.38,12.06994492]
[1764351458871,10.22015807,137.42,137.39,0.28432314]
[1764351459178,10.22015807,137.4,137.38,3.26]
[1764351459758,10.93015807,137.4,137.38,3.26]
[1764351459965,10.22015807,137.39,137.38,3.54432314]
[1764351460252,10.22015807,137.39,137.38,3.26]
[1764351460738,10.93015807,137.39,137.33,16.09167505]
[1764351460961,10.22015807,137.35,137.34,3.26]
[1764351461338,10.22015807,137.36,137.34,3.26]
[1764351461742,10.22015807,137.35,137.34,3.26]
[1764351462264,10.93015807,137.35,137.32,0.1]
[1764351462444,10.22015807,137.33,137.32,0.1]
[1764351463363,10.93015807,137.33,137.32,0.1]
[1764351463941,10.22015807,137.33,137.32,0.1]
[1764351464648,10.93015807,137.33,137.32,0.1]
[1764351466239,16.308864,137.35,137.32,0.1]
[1764351466446,10.22015807,137.33,137.32,0.1]
[1764351466942,10.93015807,137.33,137.32,0.1]
[1764351470056,18.2118882,137.33,137.32,0.1]
[1764351470264,17.018864,137.33,137.32,0.1]
[1764351470473,27.23902207,137.33,137.32,0.1]
[1764351470858,17.018864,137.33,137.32,0.1]
[1764351471175,34.5207522,137.33,137.32,0.1]
[1764351472452,43.33069712,137.33,137.32,0.1]
[1764351472952,46.59069712,137.33,137.32,0.1]
[1764351473347,37.7807522,137.33,137.32,0.1]
[1764351473547,27.23902207,137.33,137.32,0.1]
[1764351474047,10.93015807,137.33,137.32,0.1]
[1764351474258,27.23902207,137.33,137.32,0.1]
[1764351474866,18.19932103,137.37,137.32,0.78]
[1764351474867,0.71,137.37,137.32,0.78]
[1764351475063,10.22015807,137.34,137.32,0.78]
[1764351475469,10.22015807,137.35,137.32,0.78]
[1764351475771,10.22015807,137.33,137.32,0.1]
[1764351475969,0.71,137.36,137.32,0.1]
[1764351476187,10.22015807,137.33,137.32,0.1]
[1764351476565,5.88989642,137.33,137.32,0.1]
[1764351476975,0.71,137.35,137.32,0.1]
[1764351477181,5.88989642,137.33,137.32,0.1]
[1764351477370,13.17162655,137.33,137.32,0.1]
[1764351477575,13.88162655,137.33,137.32,0.1]
[1764351478965,17.14162655,137.33,137.32,0.1]
[1764351479160,9.85989642,137.33,137.32,0.1]
[1764351479362,17.14162655,137.33,137.32,0.1]
[1764351481254,6.59989642,137.33,137.32,0.1]
[1764351481455,5.88989642,137.33,137.32,0.78]
[1764351481663,0.71,137.33,137.32,0.1]
[1764351481868,5.88989642,137.33,137.32,0.1]
[1764351482666,6.59989642,137.33,137.32,0.1]
[1764351483481,13.88162655,137.33,137.32,0.1]
[1764351483687,17.14162655,137.33,137.32,0.1]
[1764351484396,25.95157147,137.33,137.32,0.1]
[1764351485489,26.85026745,137.34,137.32,0.1]
[1764351485792,5.88989642,137.33,137.32,0.1]
[1764351486401,6.54989642,137.33,137.32,0.1]
[1764351486571,5.88989642,137.33,137.32,0.1]
[1764351486765,5.88989642,137.34,137.32,0.79]
[1764351486968,5.88989642,137.33,137.32,0.1]
[1764351490077,5.88989642,137.33,137.32,0.79]
[1764351490275,11.20031716,137.36,137.32,0.79]
[1764351490276,5.88989642,137.36,137.32,0.79]
[1764351490481,16.308864,137.37,137.32,0.79]
[1764351490689,5.88989642,137.36,137.32,0.79]
[1764351491491,5.88989642,137.35,137.32,0.79]
[1764351491695,5.88989642,137.36,137.32,0.79]
[1764351492190,5.88989642,137.36,137.32,1.07432314]
[1764351492595,5.88989642,137.36,137.33,0.69]
[1764351492774,5.88989642,137.35,137.33,0.69]
[1764351493302,5.88989642,137.34,137.32,0.38432314]
[1764351493591,0.66,137.36,137.32,0.1]
[1764351493592,5.88989642,137.33,137.32,0.1]
[1764351494391,5.88989642,137.34,137.32,0.1]
[1764351494797,16.968864,137.37,137.32,0.79]
[1764351494999,5.88989642,137.34,137.32,0.79]
[1764351495175,5.88989642,137.35,137.32,0.79]
[1764351495381,5.88989642,137.35,137.32,1.07432314]
[1764351496171,109.98989642,137.36,137.33,0.69]
[1764351496371,1.99999999,137.43,137.34,0.28432314]
[1764351496372,5.88989642,137.39,137.34,0.28432314]
[1764351496794,5.88989642,137.41,137.35,0.69]
[1764351496977,5.88989642,137.4,137.35,0.69]
[1764351497172,5.88989642,137.41,137.35,0.69]
[1764351497588,5.88989642,137.39,137.35,0.69]
[1764351497773,5.88989642,137.37,137.35,0.69]
[1764351497973,5.88989642,137.37,137.34,0.28432314]
[1764351498174,5.88989642,137.37,137.34,0.97432314]
[1764351498376,5.88989642,137.37,137.34,0.69]
[1764351498571,5.88989642,137.37,137.35,0.69]
[1764351499904,5.88989642,137.38,137.35,0.69]
[1764351500796,16.308864,137.39,137.35,0.69]
[1764351500999,22.19876042,137.39,137.36,0.28432314]
[1764351501177,16.308864,137.39,137.36,0.28432314]
[1764351501377,16.308864,137.39,137.37,0.71]
[1764351501798,13.16779782,137.41,137.37,0.71]
[1764351502185,104.1,137.4,137.37,0.71]
[1764351502500,109.98989642,137.4,137.37,0.71]
[1764351502882,104.79,137.44,137.37,7.98957869]
[1764351503201,104.79,137.44,137.38,0.28432314]
[1764351503377,5.88989642,137.42,137.38,0.99432314]
[1764351503992,5.88989642,137.42,137.39,0.71]
[1764351505808,5.88989642,137.4,137.37,3.26]
[1764351506009,5.88989642,137.39,137.37,3.26]
[1764351507015,5.88989642,137.38,137.37,3.26]
[1764351507178,5.88989642,137.39,137.37,3.26]
[1764351510702,5.88989642,137.39,137.37,3.97]
[1764351510703,104.1,137.38,137.37,3.97]
[1764351510888,104.1,137.38,137.37,3.26]
[1764351511086,110.67989642,137.38,137.33,17.018864]
[1764351511300,5.88989642,137.37,137.34,0.99432314]
[1764351511802,5.88989642,137.37,137.34,0.71]
[1764351512004,5.88989642,137.37,137.34,0.99432314]
[1764351512586,2.47232664,137.37,137.34,0.99432314]
[1764351513187,2.47232664,137.37,137.34,8.27542593]
[1764351514395,2.47232664,137.36,137.33,10.54149163]
[1764351514587,2.47232664,137.36,137.34,0.28432314]
[1764351514987,2.47232664,137.36,137.34,0.99432314]
[1764351515288,106.57232664,137.38,137.34,0.99432314]
[1764351515590,106.57232664,137.38,137.35,0.71]
[1764351516684,104.1,137.38,137.36,0.28432314]
[1764351516892,104.1,137.38,137.36,3.54432314]
[1764351517106,104.1,137.38,137.36,4.25432314]
[1764351517303,2.47232664,137.37,137.36,3.26]
[1764351517502,3.16232664,137.37,137.36,3.26]
[1764351517685,3.16232664,137.37,137.32,3.36]
[1764351517894,104.1,137.36,137.33,0.99432314]
[1764351518295,2.47232664,137.39,137.35,0.28432314]
[1764351518494,2.47232664,137.39,137.36,3.26]
[1764351518798,0.69,137.41,137.36,3.97]
[1764351518996,2.47232664,137.4,137.36,3.26]
[1764351519189,2.47232664,137.39,137.36,3.97]
[1764351519590,2.47232664,137.39,137.36,11.25009244]
[1764351522391,2.47232664,137.38,137.36,11.25009244]
[1764351524312,2.47232664,137.37,137.36,11.53441558]
[1764351525191,2.47232664,137.37,137.36,3.26]
[1764351525593,3.16232664,137.37,137.33,7.28154956]
[1764351525789,2.47232664,137.34,137.33,7.99154956]
[1764351526214,2.47232664,137.34,137.33,8.2758727]
[1764351526604,2.47232664,137.34,137.33,7.99154956]
[1764351527105,2.47232664,137.34,137.33,7.5658727]
[1764351527507,2.47232664,137.34,137.33,0.28432314]
[1764351528796,2.47232664,137.34,137.32,4.07]
[1764351529319,2.47232664,137.33,137.32,3.64432314]
[1764351529618,2.47232664,137.33,137.32,3.36]
[1764351529813,3.16232664,137.33,137.32,3.36]
[1764351530427,3.16232664,137.33,137.32,0.1]
[1764351530598,2.47232664,137.33,137.32,0.1]
[1764351530908,3.16232664,137.33,137.32,0.1]
[1764351531098,2.47232664,137.33,137.32,0.1]
[1764351532116,2.47232664,137.34,137.32,0.1]
[1764351532321,2.47232664,137.35,137.32,1.09432314]
[1764351532511,2.47232664,137.35,137.32,0.81]
[1764351532707,2.47232664,137.34,137.33,3.26]
[1764351533022,2.47232664,137.34,137.33,3.97]
[1764351533201,2.47232664,137.34,137.33,3.26]
[1764351533202,3.16232664,137.34,137.33,3.26]
[1764351533397,2.47232664,137.34,137.33,3.26]
[1764351534430,2.47232664,137.35,137.33,3.97]
[1764351534607,5.88766356,137.35,137.33,3.97]
[1764351534930,5.88766356,137.34,137.33,3.97]
[1764351535599,5.88766356,137.35,137.33,3.97]
[1764351536027,5.88766356,137.34,137.33,3.97]
[1764351536227,5.88766356,137.35,137.34,0.71]
[1764351537325,5.88766356,137.35,137.33,3.26]
[1764351537649,6.57766356,137.34,137.33,3.54432314]
[1764351537820,6.57766356,137.34,137.33,3.26]
[1764351538002,5.88766356,137.35,137.33,3.97]
[1764351538418,5.88766356,137.35,137.34,0.71]
[1764351538622,10.25016727,137.35,137.34,0.71]
[1764351538830,10.25016727,137.35,137.33,3.97]
[1764351539110,10.25016727,137.35,137.33,10.8260228]
[1764351539308,10.25016727,137.35,137.34,0.71]
[1764351539525,10.25016727,137.35,137.33,4.25432314]
[1764351540320,10.25016727,137.34,137.33,4.25432314]
[1764351540731,10.25016727,137.34,137.33,3.54432314]
[1764351540939,10.25016727,137.34,137.33,4.25432314]
[1764351541446,104.1,137.36,137.34,0.28432314]
[1764351541643,104.1,137.39,137.34,9.80426806]
[1764351541813,114.35016727,137.39,137.34,9.80426806]
[1764351542011,10.25016727,137.37,137.34,0.28432314]
[1764351542209,10.25016727,137.35,137.32,0.1]
[1764351542417,10.25016727,137.33,137.32,0.1]
[1764351542809,10.94016727,137.33,137.32,0.1]
[1764351543348,18.2218974,137.33,137.32,0.1]
[1764351545209,0.69,137.33,137.32,0.1]
[1764351545415,23.58944383,137.36,137.32,0.82]
[1764351545722,10.25016727,137.36,137.33,0.28432314]
[1764351545922,10.25016727,137.37,137.33,0.28432314]
[1764351546220,10.25016727,137.38,137.34,0.72]
[1764351547318,46.63125348,137.44,137.36,9.09426806]
[1764351547319,7.27659225,137.43,137.36,9.09426806]
[1764351547527,10.25016727,137.41,137.38,0.28432314]
[1764351547969,3.26,137.45,137.39,0.72]
[1764351547970,10.25016727,137.42,137.39,0.72]
[1764351548118,10.25016727,137.45,137.41,0.28432314]
[1764351548434,10.25016727,137.45,137.42,0.72]
[1764351548618,0.69,137.5,137.44,0.28432314]
[1764351548814,10.25016727,137.49,137.46,0.28432314]
[1764351549045,10.25016727,137.48,137.46,0.28432314]
[1764351549251,0.69,137.5,137.46,0.28432314]
[1764351549441,10.25016727,137.47,137.46,0.28432314]
[1764351549635,10.25016727,137.47,137.44,0.28432314]
[1764351549837,10.25016727,137.47,137.44,1.00432314]
[1764351550350,10.25016727,137.46,137.44,0.28432314]
[1764351550553,10.25016727,137.45,137.41,3.26]
[1764351550751,10.25016727,137.43,137.41,3.26]
[1764351550934,10.25016727,137.44,137.42,0.71]
[1764351551257,10.25016727,137.43,137.41,3.97]
[1764351551551,10.25016727,137.43,137.42,0.99432314]
[1764351552054,10.25016727,137.43,137.41,3.26]
[1764351552431,10.25016727,137.43,137.41,3.97]
[1764351552635,10.25016727,137.43,137.41,3.26]
[1764351552936,10.25016727,137.43,137.39,24.29740634]
[1764351552937,10.97016727,137.42,137.39,3.26]
[1764351553143,10.25016727,137.4,137.37,3.97]
[1764351553353,0.72,137.42,137.39,0.28432314]
[1764351553354,10.25016727,137.42,137.39,0.28432314]
[1764351553553,10.25016727,137.42,137.4,0.71]
[1764351553938,10.25016727,137.41,137.4,0.71]
[1764351554137,10.25016727,137.42,137.4,0.71]
[1764351554753,0.72,137.45,137.41,3.26]
[1764351554959,10.25016727,137.43,137.41,3.26]
[1764351555168,10.25016727,137.43,137.41,3.97]
[1764351555656,10.25016727,137.42,137.41,3.54432314]
[1764351556056,10.25016727,137.44,137.42,0.28432314]
[1764351556565,10.25016727,137.43,137.42,0.99432314]
[1764351556748,10.97016727,137.43,137.39,3.26]
[1764351556954,10.25016727,137.4,137.39,3.54432314]
[1764351557152,10.25016727,137.42,137.39,4.25432314]
[1764351557351,10.25016727,137.42,137.4,0.71]
[1764351557671,10.25016727,137.41,137.39,11.53283526]
[1764351558568,7.27540688,137.45,137.35,7.99047626]
[1764351558569,10.97016727,137.4,137.35,7.99047626]
[1764351558872,10.25016727,137.38,137.37,3.54432314]
[1764351560767,10.25016727,137.38,137.34,23.58973862]
[1764351560966,10.25016727,137.36,137.35,3.26]
[1764351561272,10.25016727,137.36,137.35,3.54432314]
[1764351561970,10.25016727,137.36,137.35,3.26]
[1764351562344,10.91016727,137.36,137.35,3.26]
[1764351562767,10.25016727,137.36,137.35,3.26]
[1764351562950,10.25016727,137.36,137.35,3.40216157]
[1764351563371,10.25016727,137.36,137.35,3.54432314]
[1764351563571,10.25016727,137.37,137.35,3.54432314]
[1764351564372,10.25016727,137.36,137.35,3.54432314]
[1764351566369,10.25016727,137.36,137.35,3.26]
[1764351567452,10.25016727,137.36,137.34,3.54432314]
[1764351567644,10.25016727,137.35,137.34,3.54432314]
[1764351567849,10.25016727,137.36,137.35,0.68]
[1764351568055,10.25016727,137.36,137.34,4.22432314]
[1764351568877,76.99999999,137.47,137.34,4.22432314]
[1764351568878,10.25016727,137.42,137.36,25.40313206]
[1764351569066,10.25016727,137.44,137.38,0.28432314]
[1764351569257,10.25016727,137.45,137.4,0.28432314]
[1764351569462,10.25016727,137.45,137.41,3.26]
[1764351569667,10.25016727,137.45,137.41,20.248864]
[1764351569967,10.25016727,137.44,137.42,0.68]
[1764351571180,10.25016727,137.43,137.4,7.41999603]
[1764351571391,10.91016727,137.43,137.41,3.26]
[1764351571553,10.91016727,137.42,137.41,3.26]
[1764351571873,10.91016727,137.42,137.38,3.26]
[1764351572173,10.25016727,137.39,137.38,3.26]
[1764351572876,10.91016727,137.39,137.38,3.26]
[1764351573877,0.66,137.39,137.38,3.26]
[1764351574065,10.91016727,137.39,137.38,3.26]
[1764351574266,10.91016727,137.39,137.36,0.28432314]
[1764351574561,10.25016727,137.37,137.36,0.28432314]
[1764351575760,10.25016727,137.37,137.35,3.26]
[1764351576671,10.25016727,137.37,137.35,10.54059232]
[1764351577546,10.25016727,137.36,137.35,3.54432314]
[1764351578384,10.25016727,137.37,137.35,3.54432314]
[1764351579479,10.95016727,137.36,137.35,3.26]
[1764351579781,10.25016727,137.36,137.35,3.26]
[1764351585185,10.25016727,137.37,137.35,3.26]
[1764351585482,10.25016727,137.36,137.35,3.26]
[1764351592991,10.25016727,137.36,137.35,3.54432314]
[1764351593195,10.25016727,137.36,137.35,3.26]
[1764351593378,10.95016727,137.36,137.33,3.54432314]
[1764351593696,10.25016727,137.34,137.33,3.54432314]
[1764351594001,10.25016727,137.34,137.33,3.26]
[1764351594177,10.95016727,137.34,137.33,3.26]
[1764351594381,10.25016727,137.34,137.33,3.26]
[1764351594690,3.86483711,137.34,137.33,3.26]
[1764351595406,104.1,137.35,137.33,3.26]
[1764351595592,107.96483711,137.34,137.32,7.38221737]
[1764351595797,104.1,137.34,137.33,3.26]
[1764351596102,104.1,137.34,137.33,3.54432314]
[1764351596304,104.1,137.34,137.33,4.22432314]
[1764351596727,104.1,137.34,137.33,3.54432314]
[1764351597019,107.96483711,137.34,137.33,3.54432314]
[1764351597596,107.96483711,137.34,137.33,3.26]
[1764351598612,106.57325061,137.34,137.33,3.26]
[1764351600617,104.1,137.33,137.32,0.1]
[1764351600784,106.57325061,137.33,137.32,0.1]
[1764351600986,106.57325061,137.33,137.32,0.78]
[1764351600987,104.1,137.33,137.32,0.78]
[1764351601204,16.308864,137.38,137.32,0.78]
[1764351601205,104.1,137.38,137.33,8.80994492]
[1764351601423,2.47325061,137.37,137.35,0.28432314]
[1764351601599,2.47325061,137.36,137.35,0.28432314]
[1764351602288,3.17325061,137.36,137.35,3.26]
[1764351603218,3.17325061,137.36,137.32,10.9264117]
[1764351603519,2.47325061,137.33,137.32,3.36]